fUST/lending_fUST_20250618
["ID","MTS","AMOUNT","RATE_DAILY","PERIOD"]
[366417114,1750239039460,-460.0,0.00022246,6]
[366417115,1750239039469,-460.0,0.00022246,6]
[366417116,1750239039479,-460.0,0.00022246,6]
[366417117,1750239039489,-764.88,0.00022246,6]
[366417118,1750239039498,-1047.69,0.00022246,6]
[366417119,1750239039507,-460.0,0.00022246,6]
[366417120,1750239039517,-460.0,0.00022246,6]
[366417121,1750239039526,-625.33,0.00022246,6]
[366417122,1750239039536,-246.04749019,0.00022314,7]
[366417123,1750239039546,-500.0,0.00022337,2]
[366417124,1750239039555,-460.0,0.00022356,6]
[366417125,1750239039565,-460.0,0.00022356,6]
[366417126,1750239039574,-623.17,0.00022356,6]
[366417127,1750239039583,-509.27,0.00022356,6]
[366417128,1750239039593,-591.96,0.00022356,6]
[366417129,1750239039602,-460.0,0.00022356,6]
[366417130,1750239039612,-460.0,0.00022356,6]
[366417131,1750239039621,-460.0,0.00022356,6]
[366417132,1750239039630,-460.0,0.00022356,6]
[366417133,1750239039640,-460.0,0.00022356,6]
[366417134,1750239039649,-460.0,0.00022356,6]
[366417135,1750239039658,-764.88,0.00022356,6]
[366417136,1750239039667,-1047.69,0.00022356,6]
[366417137,1750239039675,-460.0,0.00022356,6]
[366417138,1750239039685,-460.0,0.00022356,6]
[366417139,1750239039694,-625.33,0.00022356,6]
[366417140,1750239039703,-341.69869955,0.00022392,2]
[366417141,1750239039712,-5537.0,0.00022409,2]
[366417142,1750239039721,-246.04749019,0.00022452,7]
[366417143,1750239039731,-160.0,0.00022464,2]
[366417144,1750239039741,-460.0,0.00022465,6]
[366417145,1750239039751,-460.0,0.00022465,6]
[366417146,1750239039762,-623.17,0.00022465,6]
[366417147,1750239039772,-509.27,0.00022465,6]
[366417148,1750239039781,-460.0,0.00022465,6]
[366417149,1750239039791,-460.0,0.00022465,6]
[366417150,1750239039801,-460.0,0.00022465,6]
[366417151,1750239039810,-460.0,0.00022465,6]
[366417152,1750239039820,-460.0,0.00022465,6]
[366417154,1750239039829,-460.0,0.00022465,6]
[366417156,1750239039838,-764.88,0.00022465,6]
[366417157,1750239039847,-1047.69,0.00022465,6]
[366417158,1750239039856,-460.0,0.00022465,6]
[366417159,1750239039866,-460.0,0.00022465,6]
[366417160,1750239039876,-625.33,0.00022465,6]
[366417161,1750239039889,-10001.50595652,0.000225,4]
[366417162,1750239039899,-460.0,0.00022575,6]
[366417163,1750239039908,-460.0,0.00022575,6]
[366417164,1750239039919,-623.17,0.00022575,6]
[366417165,1750239039930,-509.27,0.00022575,6]
[366417166,1750239039939,-460.0,0.00022575,6]
[366417167,1750239039949,-460.0,0.00022575,6]
[366417168,1750239039959,-460.0,0.00022575,6]
[366417169,1750239039970,-460.0,0.00022575,6]
[366417170,1750239039981,-460.0,0.00022575,6]
[366417171,1750239039990,-460.0,0.00022575,6]
[366417172,1750239039999,-1047.69,0.00022575,6]
[366417173,1750239040009,-764.88,0.00022575,6]
[366417174,1750239040019,-460.0,0.00022575,6]
[366417175,1750239040028,-460.0,0.00022575,6]
[366417176,1750239040037,-625.33,0.00022575,6]
[366417177,1750239040047,-246.04749019,0.0002259,7]
[366417178,1750239040056,-460.0,0.00022684,6]
[366417179,1750239040066,-460.0,0.00022684,6]
[366417181,1750239040075,-623.17,0.00022684,6]
[366417183,1750239040084,-509.27,0.00022684,6]
[366417184,1750239040094,-460.0,0.00022684,6]
[366417185,1750239040103,-460.0,0.00022684,6]
[366417186,1750239040112,-460.0,0.00022684,6]
[366417187,1750239040121,-460.0,0.00022684,6]
[366417188,1750239040131,-460.0,0.00022684,6]
[366417189,1750239040140,-460.0,0.00022684,6]
[366417190,1750239040149,-1047.69,0.00022684,6]
[366417191,1750239040158,-764.88,0.00022684,6]
[366417192,1750239040168,-460.0,0.00022684,6]
[366417193,1750239040177,-460.0,0.00022684,6]
[366417194,1750239040187,-625.33,0.00022684,6]
[366417195,1750239040196,-246.04749019,0.00022728,7]
[366417196,1750239040205,-460.0,0.00022794,6]
[366417197,1750239040215,-460.0,0.00022794,6]
[366417198,1750239040224,-623.17,0.00022794,6]
[366417199,1750239040234,-509.27,0.00022794,6]
[366417200,1750239040243,-460.0,0.00022794,6]
[366417201,1750239040252,-463.20839716,0.00022794,6]
[366417202,1750239040261,-460.0,0.00022794,6]
[366417203,1750239040271,-460.0,0.00022794,6]
[366417204,1750239040280,-460.0,0.00022794,6]
[366417205,1750239040289,-460.0,0.00022794,6]
[366417206,1750239040299,-1047.69,0.00022794,6]
[366417207,1750239040308,-764.88,0.00022794,6]
[366417208,1750239040322,-460.0,0.00022794,6]
[366417209,1750239040334,-460.0,0.00022794,6]
[366417210,1750239040346,-625.33,0.00022794,6]
[366417211,1750239040358,-246.04749019,0.00022866,8]
[366417212,1750239040371,-460.0,0.00022904,6]
[366417213,1750239040383,-460.0,0.00022904,6]
[366417214,1750239040394,-623.17,0.00022904,6]
[366417215,1750239040404,-509.27,0.00022904,6]
[366417216,1750239040415,-460.0,0.00022904,6]
[366417217,1750239040427,-460.0,0.00022904,6]
[366417218,1750239040438,-460.0,0.00022904,6]
[366417219,1750239040450,-460.0,0.00022904,6]
[366417220,1750239040461,-460.0,0.00022904,6]
[366417221,1750239040474,-1047.69,0.00022904,6]
[366417222,1750239040486,-764.88,0.00022904,6]
[366417223,1750239040497,-460.0,0.00022904,6]
[366417224,1750239040508,-460.0,0.00022904,6]
[366417225,1750239040521,-625.33,0.00022904,6]
[366417226,1750239040534,-500.0,0.00022926,2]
[366417227,1750239040546,-160.0,0.00023,3]
[366417228,1750239040558,-246.04749019,0.00023003,8]
[366417229,1750239040570,-460.0,0.00023013,6]
[366417230,1750239040581,-460.0,0.00023013,6]
[366417231,1750239040592,-623.17,0.00023013,6]
[366417232,1750239040604,-509.27,0.00023013,6]
[366417233,1750239040615,-569.13613312,0.00023013,6]
[366417234,1750239040626,-460.0,0.00023013,6]
[366417235,1750239040637,-460.0,0.00023013,6]
[366417236,1750239040649,-460.0,0.00023013,6]
[366417237,1750239040661,-409.21860485,0.00023013,6]
[366417273,1750239046404,-50.78139515,0.00023013,6]
[366417275,1750239046415,-1047.69,0.00023013,6]
[366417277,1750239046424,-764.88,0.00023013,6]
[366417279,1750239046434,-460.0,0.00023013,6]
[366417281,1750239046446,-460.0,0.00023013,6]
[366417283,1750239046456,-625.33,0.00023013,6]
[366417286,1750239046466,-215.0738,0.00023032,2]
[366417288,1750239046477,-465.0,0.00023054,2]
[366417290,1750239046487,-224.69933113,0.00023122,2]
[366417306,1750239451384,200.0,0.00024466,120]
[366417307,1750239483030,651.372281,0.00020379,120]
[366417308,1750239510719,200.0,0.00024535,120]
[366417313,1750239925293,163.158281,0.00013699,2]
[366417314,1750240093420,505.56,0.00023,30]
[366417315,1750240104340,758.34,0.00023,30]
[366417316,1750240118376,379.17,0.00023,30]
[366417317,1750240132522,379.16,0.00023,30]
[366417318,1750240154431,-166.6284359,0.00019852,2]
[366417319,1750240203511,-223.0,0.00019852,2]
[366417326,1750240232442,-632.99,0.00019867,2]
[366417327,1750240232452,-1177.89940022,0.00019955,2]
[366417328,1750240232462,-198.6368644,0.00020469,2]
[366417329,1750240232471,-639.852962,0.00020661,2]
[366417330,1750240232481,-172.0,0.00021524,2]
[366417331,1750240232491,-199.0,0.00021524,2]
[366417332,1750240232500,-300.0,0.00021524,2]
[366417333,1750240232510,-300.0,0.00021524,2]
[366417334,1750240232519,-1074.48676285,0.00021524,2]
[366417335,1750240238274,-125.51323715,0.00021524,2]
[366417336,1750240238284,-454.30876285,0.00021525,2]
[366417337,1750240238326,-1832.59836117,0.00021525,2]
[366417338,1750240238381,-4747.49783594,0.00021525,2]
[366417339,1750240238393,-17865.59504004,0.00021525,2]
[366417340,1750240238403,-727.7218629,0.00021563,2]
[366417341,1750240238412,-207.4,0.00021663,2]
[366417342,1750240238421,-1265.99,0.00021673,2]
[366417343,1750240238431,-206.67989199,0.000219,6]
[366417344,1750240238440,-248.86825803,0.00021916,2]
[366417345,1750240238449,-184.083,0.00021916,2]
[366417346,1750240238459,-500.0,0.00021916,2]
[366417347,1750240238469,-500.0,0.00021916,2]
[366417348,1750240238478,-500.0,0.00021916,2]
[366417349,1750240238488,-600.0,0.00021916,2]
[366417350,1750240238497,-500.0,0.00021916,2]
[366417351,1750240238507,-500.0,0.00021916,2]
[366417352,1750240238517,-500.0,0.00021916,2]
[366417353,1750240238526,-260.87878681,0.00021916,2]
[366417354,1750240238535,-202.54773747,0.00021916,2]
[366417355,1750240238544,-195.51856921,0.00021916,2]
[366417356,1750240238553,-500.0,0.00021916,2]
[366417357,1750240238563,-500.0,0.00021916,2]
[366417358,1750240238572,-297.45226253,0.00021916,2]
[366417359,1750240238582,-500.0,0.00021916,2]
[366417360,1750240238595,-500.0,0.00021916,2]
[366417361,1750240238605,-500.0,0.00021916,2]
[366417362,1750240238614,-500.0,0.00021916,2]
[366417363,1750240238767,-500.0,0.00021916,2]
[366417364,1750240238777,-500.0,0.00021916,2]
[366417365,1750240238787,-500.0,0.00021916,2]
[366417366,1750240238796,-500.0,0.00021916,2]
[366417367,1750240238805,-500.0,0.00021916,2]
[366417368,1750240238814,-500.0,0.00021916,2]
[366417369,1750240238823,-500.0,0.00021916,2]
[366417370,1750240238833,-203.63877448,0.00021916,2]
[366417371,1750240238842,-500.0,0.00021916,2]
[366417372,1750240238851,-500.0,0.00021916,2]
[366417373,1750240238861,-500.0,0.00021916,2]
[366417374,1750240238870,-500.0,0.00021916,2]
[366417375,1750240238879,-500.0,0.00021916,2]
[366417376,1750240238889,-500.0,0.00021916,2]
[366417377,1750240238898,-500.0,0.00021916,2]
[366417378,1750240238907,-510.16485552,0.00021916,2]
[366417379,1750240238916,-500.0,0.00021916,2]
[366417380,1750240238926,-500.0,0.00021916,2]
[366417381,1750240238935,-500.0,0.00021916,2]
[366417382,1750240238944,-500.0,0.00021916,2]
[366417383,1750240238953,-500.0,0.00021916,2]
[366417384,1750240238962,-300.0,0.00021916,2]
[366417385,1750240238972,-500.0,0.00021916,2]
[366417386,1750240238981,-358.30384406,0.00021916,2]
[366417387,1750240238993,-141.69615594,0.00021916,2]
[366417388,1750240239003,-157.9651217,0.00021916,2]
[366417389,1750240239012,-500.0,0.00021916,2]
[366417390,1750240239021,-500.0,0.00021916,2]
[366417391,1750240239031,-136.79180249,0.00021916,2]
[366417392,1750240239043,-363.20819751,0.00021916,2]
[366417393,1750240239052,-500.0,0.00021916,2]
[366417394,1750240239062,-238.08822289,0.00021916,2]
[366417399,1750240240672,-261.91177711,0.00021916,2]
[366417400,1750240240682,-500.0,0.00021916,2]
[366417401,1750240240692,-500.0,0.00021916,2]
[366417402,1750240240701,-500.0,0.00021916,2]
[366417403,1750240240711,-500.0,0.00021916,2]
[366417404,1750240240721,-450.0,0.00021916,2]
[366417405,1750240240730,-500.0,0.00021916,2]
[366417406,1750240240740,-500.0,0.00021916,2]
[366417407,1750240240750,-428.80854642,0.00021916,2]
[366417409,1750240243491,-71.19145358,0.00021916,2]
[366417410,1750240243501,-500.0,0.00021916,2]
[366417412,1750240243511,-500.0,0.00021916,2]
[366417414,1750240243521,-500.0,0.00021916,2]
[366417415,1750240243530,-185.28911199,0.00021916,2]
[366417416,1750240243539,-500.0,0.00021916,2]
[366417417,1750240243549,-500.0,0.00021916,2]
[366417418,1750240243559,-500.0,0.00021916,2]
[366417419,1750240243569,-500.0,0.00021916,2]
[366417420,1750240243578,-500.0,0.00021916,2]
[366417421,1750240243589,-500.0,0.00021916,2]
[366417422,1750240243598,-500.0,0.00021916,2]
[366417423,1750240243609,-500.0,0.00021916,2]
[366417424,1750240243618,-500.0,0.00021916,2]
[366417425,1750240243627,-500.0,0.00021916,2]
[366417426,1750240243636,-500.0,0.00021916,2]
[366417427,1750240243646,-500.0,0.00021916,2]
[366417428,1750240243657,-500.0,0.00021916,2]
[366417429,1750240243667,-500.0,0.00021916,2]
[366417430,1750240243676,-500.0,0.00021916,2]
[366417431,1750240243686,-500.0,0.00021916,2]
[366417432,1750240243695,-500.0,0.00021916,2]
[366417433,1750240243704,-500.0,0.00021916,2]
[366417434,1750240243714,-600.0,0.00021916,2]
[366417435,1750240243723,-500.0,0.00021916,2]
[366417436,1750240243732,-500.0,0.00021916,2]
[366417437,1750240243742,-500.0,0.00021916,2]
[366417438,1750240243752,-500.0,0.00021916,2]
[366417439,1750240243761,-349.03288169,0.00021916,2]
[366417440,1750240243771,-500.0,0.00021916,2]
[366417441,1750240243780,-500.0,0.00021916,2]
[366417442,1750240243789,-500.0,0.00021916,2]
[366417443,1750240243798,-500.0,0.00021916,2]
[366417444,1750240243807,-500.0,0.00021916,2]
[366417445,1750240243817,-500.0,0.00021916,2]
[366417446,1750240243826,-523.70120002,0.00021916,2]
[366417447,1750240243835,-500.0,0.00021916,2]
[366417448,1750240243844,-500.0,0.00021916,2]
[366417449,1750240243853,-500.0,0.00021916,2]
[366417450,1750240243862,-500.0,0.00021916,2]
[366417451,1750240243871,-451.46892422,0.00021916,2]
[366417452,1750240243880,-500.0,0.00021916,2]
[366417453,1750240243889,-500.0,0.00021916,2]
[366417454,1750240243899,-500.0,0.00021916,2]
[366417455,1750240243910,-500.0,0.00021916,2]
[366417456,1750240243919,-500.0,0.00021916,2]
[366417457,1750240243928,-500.0,0.00021916,2]
[366417458,1750240243938,-630.0,0.00021916,2]
[366417459,1750240243947,-500.0,0.00021916,2]
[366417460,1750240243956,-500.0,0.00021916,2]
[366417461,1750240243966,-500.0,0.00021916,2]
[366417462,1750240243975,-500.0,0.00021916,2]
[366417463,1750240243984,-500.0,0.00021916,2]
[366417464,1750240243994,-500.0,0.00021916,2]
[366417465,1750240244003,-300.0,0.00021916,2]
[366417466,1750240244015,-500.0,0.00021916,2]
[366417467,1750240244025,-500.0,0.00021916,2]
[366417468,1750240244034,-500.0,0.00021916,2]
[366417469,1750240244044,-500.0,0.00021916,2]
[366417470,1750240244054,-500.0,0.00021916,2]
[366417471,1750240244064,-612.46116747,0.00021916,2]
[366417472,1750240244073,-500.0,0.00021916,2]
[366417473,1750240244082,-500.0,0.00021916,2]
[366417474,1750240244091,-500.0,0.00021916,2]
[366417475,1750240244102,-440.0,0.00021917,6]
[366417476,1750240244111,-540.79488643,0.00021917,6]
[366417477,1750240244121,-447.68596243,0.00021917,6]
[366417478,1750240244130,-440.0,0.00021917,6]
[366417479,1750240244140,-460.0,0.00021917,6]
[366417480,1750240244149,-374.69304928,0.00021917,6]
[366417481,1750240244158,-500.0,0.00021917,6]
[366417482,1750240244168,-460.0,0.00021917,6]
[366417483,1750240244177,-460.0,0.00021917,6]
[366417484,1750240244187,-460.0,0.00021917,6]
[366417485,1750240244196,-454.35536951,0.00021917,6]
[366417486,1750240244206,-400.0,0.00021917,6]
[366417487,1750240244216,-460.0,0.00021917,6]
[366417488,1750240244226,-425.82169641,0.00021917,6]
[366417489,1750240244235,-460.0,0.00021917,6]
[366417490,1750240244245,-460.0,0.00021917,6]
[366417491,1750240244255,-460.0,0.00021917,6]
[366417492,1750240244265,-460.0,0.00021917,6]
[366417493,1750240244275,-460.0,0.00021917,6]
[366417494,1750240244284,-460.0,0.00021917,6]
[366417495,1750240244293,-420.0,0.00021917,6]
[366417496,1750240244303,-460.0,0.00021917,6]
[366417497,1750240244312,-460.0,0.00021917,6]
[366417498,1750240244322,-442.7716634,0.00021917,6]
[366417499,1750240244331,-460.0,0.00021917,6]
[366417500,1750240244340,-460.0,0.00021917,6]
[366417501,1750240244350,-460.0,0.00021917,6]
[366417502,1750240244359,-460.0,0.00021917,6]
[366417503,1750240244368,-432.7180981,0.00021917,6]
[366417504,1750240244378,-460.0,0.00021917,6]
[366417505,1750240244387,-460.0,0.00021917,6]
[366417506,1750240244397,-430.0,0.00021917,6]
[366417507,1750240244406,-460.0,0.00021917,6]
[366417508,1750240244415,-460.0,0.00021917,6]
[366417509,1750240244424,-460.0,0.00021917,6]
[366417510,1750240244434,-460.0,0.00021917,6]
[366417511,1750240244443,-460.0,0.00021917,6]
[366417512,1750240244452,-270.0,0.00021917,6]
[366417513,1750240244462,-460.0,0.00021917,6]
[366417514,1750240244471,-460.0,0.00021917,6]
[366417515,1750240244481,-460.0,0.00021917,6]
[366417516,1750240244490,-400.0,0.00021917,6]
[366417517,1750240244499,-460.0,0.00021917,6]
[366417518,1750240244508,-460.0,0.00021917,6]
[366417519,1750240244518,-460.0,0.00021917,6]
[366417520,1750240244527,-460.0,0.00021917,6]
[366417521,1750240244536,-500.0,0.00021917,6]
[366417522,1750240244545,-460.0,0.00021917,6]
[366417523,1750240244555,-460.0,0.00021917,6]
[366417524,1750240244564,-460.0,0.00021917,6]
[366417525,1750240244573,-471.26148848,0.00021917,6]
[366417526,1750240244582,-151.02126116,0.00021917,6]
[366417527,1750240244596,-460.0,0.00021917,6]
[366417528,1750240244606,-460.0,0.00021917,6]
[366417529,1750240244615,-460.0,0.00021917,6]
[366417530,1750240244625,-460.0,0.00021917,6]
[366417531,1750240244634,-460.0,0.00021917,6]
[366417532,1750240244644,-460.0,0.00021917,6]
[366417533,1750240244653,-460.0,0.00021917,6]
[366417534,1750240244662,-460.0,0.00021917,6]
[366417535,1750240244672,-460.0,0.00021917,6]
[366417536,1750240244681,-460.0,0.00021917,6]
[366417537,1750240244691,-460.0,0.00021917,6]
[366417538,1750240244700,-460.0,0.00021917,6]
[366417539,1750240244710,-460.0,0.00021917,6]
[366417540,1750240244719,-460.0,0.00021917,6]
[366417541,1750240244728,-460.0,0.00021917,6]
[366417542,1750240244737,-460.0,0.00021917,6]
[366417543,1750240244747,-460.0,0.00021917,6]
[366417544,1750240244756,-460.0,0.00021917,6]
[366417545,1750240244766,-460.0,0.00021917,6]
[366417546,1750240244775,-460.0,0.00021917,6]
[366417547,1750240244784,-460.0,0.00021917,6]
[366417548,1750240244794,-460.0,0.00021917,6]
[366417549,1750240244803,-415.01678467,0.00021917,6]
[366417550,1750240244812,-460.0,0.00021917,6]
[366417551,1750240244822,-460.0,0.00021917,6]
[366417552,1750240244831,-460.0,0.00021917,6]
[366417553,1750240244840,-560.63562434,0.00021917,6]
[366417554,1750240244849,-460.0,0.00021917,6]
[366417555,1750240244858,-460.0,0.00021917,6]
[366417556,1750240244867,-420.0,0.00021917,6]
[366417557,1750240244876,-460.0,0.00021917,6]
[366417558,1750240244885,-460.0,0.00021917,6]
[366417559,1750240244894,-460.0,0.00021917,6]
[366417560,1750240244904,-309.59053848,0.00021917,6]
[366417561,1750240244913,-430.0,0.00021917,6]
[366417562,1750240244922,-439.91316033,0.00021917,6]
[366417563,1750240244931,-460.0,0.00021917,6]
[366417564,1750240244940,-460.0,0.00021917,6]
[366417565,1750240244949,-460.0,0.00021917,6]
[366417566,1750240244959,-420.0,0.00021917,6]
[366417567,1750240244968,-355.43974283,0.00021917,6]
[366417568,1750240244977,-318.36743157,0.00021917,6]
[366417569,1750240244986,-460.0,0.00021917,6]
[366417570,1750240244996,-461.41601423,0.00021917,6]
[366417571,1750240245005,-460.0,0.00021917,6]
[366417572,1750240245014,-460.0,0.00021917,6]
[366417573,1750240245023,-430.0,0.00021917,6]
[366417574,1750240245032,-460.0,0.00021917,6]
[366417575,1750240245041,-460.0,0.00021917,6]
[366417576,1750240245051,-460.0,0.00021917,6]
[366417577,1750240245061,-460.0,0.00021917,6]
[366417578,1750240245070,-460.0,0.00021917,6]
[366417579,1750240245080,-460.0,0.00021917,6]
[366417580,1750240245089,-460.0,0.00021917,6]
[366417581,1750240245098,-460.0,0.00021917,6]
[366417582,1750240245107,-460.0,0.00021917,6]
[366417583,1750240245116,-460.0,0.00021917,6]
[366417584,1750240245126,-460.0,0.00021917,6]
[366417585,1750240245135,-430.0,0.00021917,6]
[366417586,1750240245144,-460.0,0.00021917,6]
[366417587,1750240245153,-430.0,0.00021917,6]
[366417588,1750240245163,-460.0,0.00021917,6]
[366417589,1750240245172,-460.0,0.00021917,6]
[366417590,1750240245181,-460.0,0.00021917,6]
[366417591,1750240245190,-352.83232537,0.00021917,6]
[366417592,1750240245200,-460.0,0.00021917,6]
[366417593,1750240245209,-430.0,0.00021917,6]
[366417594,1750240245218,-460.0,0.00021917,6]
[366417595,1750240245227,-460.0,0.00021917,6]
[366417596,1750240245236,-460.0,0.00021917,6]
[366417597,1750240245246,-460.0,0.00021917,6]
[366417598,1750240245255,-460.0,0.00021917,6]
[366417599,1750240245264,-430.0,0.00021917,6]
[366417600,1750240245273,-460.0,0.00021917,6]
[366417601,1750240245282,-440.0,0.00021917,6]
[366417602,1750240245291,-440.0,0.00021917,6]
[366417603,1750240245300,-410.0,0.00021917,6]
[366417604,1750240245309,-460.0,0.00021917,6]
[366417605,1750240245319,-460.0,0.00021917,6]
[366417606,1750240245328,-460.0,0.00021917,6]
[366417607,1750240245336,-460.0,0.00021917,6]
[366417608,1750240245346,-460.0,0.00021917,6]
[366417609,1750240245355,-440.0,0.00021917,6]
[366417610,1750240245364,-460.0,0.00021917,6]
[366417611,1750240245373,-460.0,0.00021917,6]
[366417612,1750240245382,-460.0,0.00021917,6]
[366417613,1750240245392,-460.0,0.00021917,6]
[366417614,1750240245401,-460.0,0.00021917,6]
[366417615,1750240245411,-430.0,0.00021917,6]
[366417616,1750240245421,-440.0,0.00021917,6]
[366417617,1750240245430,-460.0,0.00021917,6]
[366417618,1750240245440,-460.0,0.00021917,6]
[366417619,1750240245449,-460.0,0.00021917,6]
[366417620,1750240245458,-440.0,0.00021917,6]
[366417621,1750240245467,-430.0,0.00021917,6]
[366417622,1750240245477,-460.0,0.00021917,6]
[366417623,1750240245486,-460.0,0.00021917,6]
[366417624,1750240245496,-460.0,0.00021917,6]
[366417625,1750240245506,-460.0,0.00021917,6]
[366417626,1750240245515,-460.0,0.00021917,6]
[366417627,1750240245524,-508.8626065,0.00021917,6]
[366417628,1750240245534,-460.0,0.00021917,6]
[366417629,1750240245543,-460.0,0.00021917,6]
[366417630,1750240245552,-460.0,0.00021917,6]
[366417631,1750240245562,-460.0,0.00021917,6]
[366417632,1750240245572,-460.0,0.00021917,6]
[366417633,1750240245595,-430.0,0.00021917,6]
[366417634,1750240245604,-460.0,0.00021917,6]
[366417635,1750240245614,-460.0,0.00021917,6]
[366417636,1750240245624,-460.0,0.00021917,6]
[366417637,1750240245633,-348.70646529,0.00021917,6]
[366417638,1750240245643,-237.24907794,0.00021917,6]
[366417639,1750240245652,-440.0,0.00021917,6]
[366417640,1750240245662,-440.0,0.00021917,6]
[366417641,1750240245671,-460.0,0.00021917,6]
[366417642,1750240245681,-460.0,0.00021917,6]
[366417643,1750240245691,-420.45683382,0.00021917,6]
[366417644,1750240245701,-460.0,0.00021917,6]
[366417645,1750240245710,-440.0,0.00021917,6]
[366417646,1750240245720,-412.57978074,0.00021917,6]
[366417647,1750240245730,-460.0,0.00021917,6]
[366417648,1750240245836,-460.0,0.00021917,6]
[366417649,1750240245846,-430.0,0.00021917,6]
[366417650,1750240245856,-440.0,0.00021917,6]
[366417651,1750240245866,-308.33129502,0.00021917,6]
[366417652,1750240245875,-460.0,0.00021917,6]
[366417653,1750240245885,-420.0,0.00021917,6]
[366417654,1750240245894,-460.0,0.00021917,6]
[366417655,1750240245904,-636.67,0.00021917,6]
[366417656,1750240245914,-404.29426956,0.00021917,6]
[366417657,1750240245924,-420.0,0.00021917,6]
[366417658,1750240245933,-430.0,0.00021917,6]
[366417659,1750240245942,-500.0,0.00021917,6]
[366417660,1750240245952,-500.0,0.00021917,6]
[366417661,1750240245961,-430.0,0.00021917,6]
[366417662,1750240245971,-407.59848366,0.00021917,6]
[366417663,1750240245981,-460.0,0.00021917,6]
[366417664,1750240245991,-430.0,0.00021917,6]
[366417665,1750240246001,-440.0,0.00021917,6]
[366417666,1750240246011,-460.0,0.00021917,6]
[366417667,1750240246021,-460.0,0.00021917,6]
[366417668,1750240246031,-460.0,0.00021917,6]
[366417669,1750240246042,-460.0,0.00021917,6]
[366417670,1750240246052,-430.0,0.00021917,6]
[366417671,1750240246062,-440.0,0.00021917,6]
[366417672,1750240246072,-500.0,0.00021917,6]
[366417673,1750240246082,-416.81704989,0.00021917,6]
[366417674,1750240246092,-460.0,0.00021917,6]
[366417675,1750240246102,-558.52476499,0.00021917,6]
[366417676,1750240246112,-460.0,0.00021917,6]
[366417677,1750240246123,-460.0,0.00021917,6]
[366417678,1750240246133,-460.0,0.00021917,6]
[366417679,1750240246142,-466.12992739,0.00021917,6]
[366417680,1750240246152,-460.0,0.00021917,6]
[366417681,1750240246162,-509.54459199,0.00021917,6]
[366417682,1750240246172,-355.99532144,0.00021917,6]
[366417683,1750240246184,-500.0,0.00022026,6]
[366417684,1750240246194,-460.0,0.00022027,6]
[366417685,1750240246203,-460.0,0.00022027,6]
[366417686,1750240246213,-460.0,0.00022027,6]
[366417687,1750240246222,-460.0,0.00022027,6]
[366417688,1750240246231,-460.0,0.00022027,6]
[366417689,1750240246241,-460.0,0.00022027,6]
[366417690,1750240246250,-460.0,0.00022027,6]
[366417691,1750240246260,-220.29,0.00022027,6]
[366417692,1750240246270,-460.0,0.00022027,6]
[366417693,1750240246280,-460.0,0.00022027,6]